lending/lending_fUSD_20241229
["ID","MTS","AMOUNT","RATE_DAILY","PERIOD"]
[347050456,1735483857656,-500.0,0.0001182,2]
[347050457,1735483857666,-1130.51,0.0001182,2]
[347050458,1735483857675,-1922.95,0.0001182,2]
[347050459,1735483857684,-500.0,0.0001182,2]
[347050460,1735483857693,-1115.3,0.0001182,2]
[347050461,1735483857703,-1650.74,0.0001182,2]
[347050462,1735483857712,-13666.47,0.0001182,2]
[347050463,1735483857721,-500.0,0.0001182,2]
[347050464,1735483857730,-500.0,0.0001182,2]
[347050465,1735483857740,-500.0,0.0001182,2]
[347050466,1735483857750,-3169.86,0.0001182,2]
[347050467,1735483857760,-500.0,0.0001182,2]
[347050468,1735483857770,-11758.28,0.0001182,2]
[347050469,1735483857779,-1303.58,0.0001182,2]
[347050470,1735483857788,-1701.11,0.0001182,2]
[347050471,1735483857798,-500.0,0.0001182,2]
[347050472,1735483857807,-500.0,0.0001182,2]
[347050473,1735483857816,-2691.24,0.0001182,2]
[347050474,1735483857825,-4879.13917252,0.0001182,2]
[347050475,1735483857925,-2329.55082748,0.0001182,2]
[347050476,1735483857935,-500.0,0.00011821,2]
[347050477,1735483857943,-257.33470056,0.00011821,2]
[347050478,1735483900404,170.01,0.000179,31]
[347050479,1735483900463,170.01,0.000179,31]
[347050480,1735483900518,170.01,0.000179,31]
[347050481,1735483900581,170.01,0.000179,31]
[347050482,1735483900663,170.01,0.000179,31]
[347050483,1735483900696,170.01,0.000179,31]
[347050484,1735483900755,170.01,0.000179,31]
[347050485,1735483900829,170.01,0.000179,31]
[347050486,1735483900878,170.01,0.000179,31]
[347050487,1735483900942,170.01,0.000179,31]
[347050488,1735483901002,170.01,0.000179,31]
[347050489,1735483901060,170.01,0.000179,31]
[347050490,1735483901121,170.01,0.000179,31]
[347050491,1735483901183,170.01,0.000179,31]
[347050492,1735483901473,170.01,0.000179,31]
[347050493,1735483901510,170.01,0.000179,31]
[347050494,1735483940844,1000.0,0.00018,30]
[347050495,1735483943147,500.0,0.00010959,3]
[347050496,1735483962786,500.0,0.00024732,120]
[347050497,1735484011185,1000.0,0.00024732,120]
[347050498,1735484020427,1000.0,0.00010919,2]
[347050499,1735484021707,1000.0,0.00018,30]
[347050501,1735484077553,1000.0,0.00018,30]
[347050502,1735484086672,1000.0,0.00018,30]
[347050503,1735484183091,1000.0,0.00018,30]
[347050504,1735484183576,1000.0,0.00024732,120]
[347050506,1735484202202,1000.0,0.00024732,120]
[347050509,1735484335190,589.24,0.00010877,2]
[347050510,1735484495247,150.0,0.00010959,2]
[347050511,1735484512096,153.57,0.000179,31]
[347050512,1735484512409,153.57,0.000179,31]
[347050513,1735484512490,153.57,0.000179,31]
[347050514,1735484512552,153.57,0.000179,31]
[347050515,1735484512588,153.57,0.000179,31]
[347050516,1735484512637,153.57,0.000179,31]
[347050517,1735484512723,153.57,0.000179,31]
[347050518,1735484512761,153.57,0.000179,31]
[347050519,1735484512814,153.57,0.000179,31]
[347050520,1735484512846,153.57,0.000179,31]
[347050521,1735484512910,153.57,0.000179,31]
[347050522,1735484512972,153.57,0.000179,31]
[347050523,1735484513018,153.57,0.000179,31]
[347050524,1735484513068,153.57,0.000179,31]
[347050525,1735484513153,153.57,0.000179,31]
[347050526,1735484513250,153.57,0.000179,31]
[347050527,1735484522692,265.47,0.00016658,30]
[347050528,1735484545191,23900.0,0.00010769,2]
[347050531,1735484611827,250.0,0.00010705,2]
[347050532,1735484661784,458.59,8.888e-05,2]
[347050535,1735484761688,958.66,0.00010841,2]
[347050536,1735484807975,815.86,0.00010959,2]
[347050537,1735484821573,167.14,0.00010791,2]
[347050538,1735484873854,650.8,0.00010719,2]
[347050540,1735484902589,250.0,0.00010706,2]
[347050541,1735484903446,1000.0,0.00010706,2]
[347050542,1735484948575,500.0,0.00024735,120]
[347050543,1735485005405,5628.0,0.00010959,2]
[347050552,1735485032291,-458.59,0.00011152,2]
[347050553,1735485032301,-900.0,0.000114,4]
[347050554,1735485032311,-1800.0,0.000115,4]
[347050555,1735485032321,-937.56,0.00011543,2]
[347050556,1735485032331,-6419.46,0.00011543,2]
[347050557,1735485032340,-1353.33,0.00011543,2]
[347050558,1735485032350,-21318.49,0.00011543,2]
[347050559,1735485032360,-5689.62,0.00011543,2]
[347050560,1735485032370,-5112.3,0.00011543,2]
[347050561,1735485032380,-500.0,0.00011543,2]
[347050562,1735485032390,-7995.69,0.00011543,2]
[347050563,1735485032399,-918.63,0.00011543,2]
[347050564,1735485032409,-327.60642308,0.00011543,2]
[347050565,1735485032421,-1707.23357692,0.00011543,2]
[347050566,1735485032431,-1685.67,0.00011543,2]
[347050567,1735485032441,-500.0,0.00011544,2]
[347050568,1735485032451,-500.0,0.00011544,2]
[347050569,1735485032461,-500.0,0.00011544,2]
[347050570,1735485032471,-500.0,0.00011544,2]
[347050571,1735485032481,-603.14,0.00011544,2]
[347050572,1735485032491,-500.0,0.00011544,2]
[347050573,1735485032500,-500.0,0.00011544,2]
[347050574,1735485032510,-560.55,0.00011544,2]
[347050575,1735485032520,-958.45,0.00011544,2]
[347050576,1735485032529,-500.0,0.00011544,2]
[347050577,1735485032539,-854.07,0.00011544,2]
[347050578,1735485032549,-500.0,0.00011544,2]
[347050579,1735485032559,-500.0,0.00011544,2]
[347050580,1735485032568,-500.0,0.00011544,2]
[347050581,1735485032578,-982.29,0.00011544,2]
[347050582,1735485032587,-500.0,0.00011544,2]
[347050583,1735485032598,-422.46093057,0.00011544,2]
[347050584,1735485032607,-627.26,0.00011544,2]
[347050585,1735485032616,-500.0,0.00011544,2]
[347050586,1735485032625,-500.0,0.00011544,2]
[347050587,1735485032635,-500.0,0.00011544,2]
[347050588,1735485032644,-500.0,0.00011544,2]
[347050589,1735485032653,-500.0,0.00011544,2]
[347050590,1735485032662,-500.0,0.00011544,2]
[347050591,1735485032671,-500.0,0.00011544,2]
[347050592,1735485032680,-516.58671904,0.00011544,2]
[347050593,1735485032691,-500.0,0.00011544,2]
[347050594,1735485032701,-494.17053695,0.00011544,2]
[347050595,1735485032710,-1646.46,0.00011544,2]
[347050596,1735485032720,-3088.01,0.00011544,2]
[347050597,1735485032729,-531.32128869,0.00011544,2]
[347050598,1735485032739,-500.0,0.00011544,2]
[347050599,1735485032749,-500.0,0.00011544,2]
[347050600,1735485032759,-840.94,0.00011544,2]
[347050601,1735485032770,-500.0,0.00011544,2]
[347050602,1735485032779,-542.73,0.00011544,2]
[347050603,1735485032793,-500.0,0.00011544,2]
[347050604,1735485032802,-500.0,0.00011544,2]
[347050605,1735485032811,-500.0,0.00011544,2]
[347050606,1735485032823,-500.0,0.00011544,2]
[347050607,1735485032833,-500.0,0.00011544,2]
[347050608,1735485032843,-500.0,0.00011544,2]
[347050609,1735485032852,-500.0,0.00011544,2]
[347050610,1735485032863,-500.0,0.00011544,2]
[347050611,1735485032874,-1054.73,0.00011544,2]
[347050612,1735485032884,-826.88,0.00011544,2]
[347050613,1735485032893,-1215.71,0.00011544,2]
[347050614,1735485032903,-500.0,0.00011544,2]
[347050615,1735485032913,-500.0,0.00011544,2]
[347050616,1735485032923,-500.0,0.00011544,2]
[347050618,1735485032933,-500.0,0.00011544,2]
[347050620,1735485032943,-500.0,0.00011544,2]
[347050621,1735485032954,-500.0,0.00011544,2]
[347050624,1735485032963,-2478.98,0.00011544,2]
[347050625,1735485032973,-2604.35,0.00011544,2]
[347050627,1735485032983,-501.11205636,0.00011544,2]
[347050629,1735485032992,-500.0,0.00011544,2]
[347050631,1735485033002,-500.0,0.00011544,2]
[347050634,1735485033013,-500.0,0.00011544,2]
[347050636,1735485033023,-500.0,0.00011544,2]
[347050638,1735485033032,-1831.29,0.00011544,2]
[347050640,1735485033042,-500.0,0.00011544,2]
[347050641,1735485033051,-326.59280587,0.00011544,2]
[347050644,1735485033067,-651.95719413,0.00011544,2]
[347050646,1735485033077,-500.0,0.00011544,2]
[347050648,1735485033086,-500.0,0.00011544,2]
[347050650,1735485033096,-500.0,0.00011544,2]
[347050652,1735485033106,-500.0,0.00011544,2]
[347050654,1735485033116,-500.0,0.00011544,2]
[347050656,1735485033126,-1924.28,0.00011544,2]
[347050658,1735485033136,-358.26111355,0.00011544,2]
[347050660,1735485033149,-144.91289275,0.00011544,2]
[347050662,1735485033159,-292.19910723,0.00011544,2]
[347050665,1735485033183,-207.80089277,0.00011544,2]
[347050667,1735485033193,-518.46558863,0.00011544,2]
[347050670,1735485033203,-500.0,0.00011544,2]
[347050672,1735485033213,-500.78837733,0.00011544,2]
[347050673,1735485033223,-703.73,0.00011544,2]
[347050675,1735485033233,-500.0,0.00011544,2]
[347050677,1735485033243,-929.11,0.00011544,2]
[347050679,1735485033253,-258.36493186,0.00011544,2]
[347050682,1735485033264,-1307.88,0.00011544,2]
[347050683,1735485033273,-500.0,0.00011544,2]
[347050685,1735485033283,-500.0,0.00011544,2]
[347050687,1735485033292,-1078.62,0.00011544,2]
[347050689,1735485033302,-500.0,0.00011544,2]
[347050691,1735485033311,-728.68,0.00011544,2]
[347050693,1735485033321,-1110.93,0.00011544,2]
[347050695,1735485033330,-500.0,0.00011544,2]
[347050697,1735485033340,-500.0,0.00011544,2]
[347050699,1735485033349,-500.0,0.00011544,2]
[347050701,1735485033358,-500.0,0.00011544,2]
[347050703,1735485033368,-1329.23020899,0.00011544,2]
[347050730,1735485033612,-777.38979101,0.00011544,2]
[347050732,1735485033622,-500.0,0.00011544,2]
[347050734,1735485033632,-500.0,0.00011544,2]
[347050736,1735485033642,-631.48458613,0.00011544,2]
[347050738,1735485033652,-500.0,0.00011544,2]
[347050740,1735485033661,-500.0,0.00011544,2]
[347050742,1735485033670,-833.81,0.00011544,2]
[347050744,1735485033680,-399.93858384,0.00011544,2]
[347050746,1735485033689,-500.0,0.00011544,2]
[347050748,1735485033699,-500.0,0.00011544,2]
[347050750,1735485033708,-500.0,0.00011544,2]
[347050752,1735485033718,-500.0,0.00011544,2]
[347050754,1735485033727,-953.53,0.00011544,2]
[347050756,1735485033737,-633.55548037,0.00011544,2]
[347050758,1735485033747,-500.0,0.00011544,2]
[347050760,1735485033756,-1102.42,0.00011544,2]
[347050762,1735485033765,-500.0,0.00011544,2]
[347050764,1735485033774,-500.0,0.00011544,2]
[347050766,1735485033784,-500.0,0.00011544,2]
[347050768,1735485033797,-500.0,0.00011544,2]
[347050770,1735485033806,-500.0,0.00011544,2]
[347050772,1735485033816,-424.69910696,0.00011544,2]
[347050774,1735485033826,-500.0,0.00011544,2]
[347050776,1735485033836,-500.0,0.00011544,2]
[347050777,1735485033845,-180.0649147,0.00011544,2]
[347050778,1735485033856,-1187.58,0.00011544,2]
[347050779,1735485033866,-500.0,0.00011544,2]
[347050780,1735485033875,-577.87,0.00011544,2]
[347050781,1735485033886,-1848.16,0.00011544,2]
[347050782,1735485033895,-500.0,0.00011544,2]
[347050783,1735485033905,-4435.76,0.00011544,2]
[347050784,1735485033915,-1630.71,0.00011544,2]
[347050785,1735485033924,-500.0,0.00011544,2]
[347050786,1735485033934,-643.32468164,0.00011544,2]
[347050787,1735485033943,-518.44,0.00011544,2]
[347050788,1735485033953,-500.0,0.00011544,2]
[347050789,1735485033962,-500.0,0.00011544,2]
[347050790,1735485033972,-500.0,0.00011544,2]
[347050791,1735485033981,-500.0,0.00011544,2]
[347050792,1735485033991,-500.0,0.00011544,2]
[347050793,1735485034001,-846.97,0.00011544,2]
[347050794,1735485034010,-500.0,0.00011544,2]
[347050795,1735485034021,-500.0,0.00011544,2]
[347050796,1735485034031,-500.0,0.00011544,2]
[347050797,1735485034041,-500.0,0.00011544,2]
[347050798,1735485034050,-500.0,0.00011544,2]
[347050799,1735485034059,-500.0,0.00011544,2]
[347050800,1735485034068,-428.78519179,0.00011544,2]
[347050801,1735485034078,-500.0,0.00011544,2]
[347050802,1735485034087,-797.57,0.00011544,2]
[347050803,1735485034096,-500.0,0.00011544,2]
[347050804,1735485034106,-500.0,0.00011544,2]
[347050805,1735485034116,-500.0,0.00011544,2]
[347050806,1735485034126,-500.0,0.00011544,2]
[347050807,1735485034135,-500.0,0.00011544,2]
[347050808,1735485034145,-500.0,0.00011544,2]
[347050809,1735485034154,-500.0,0.00011544,2]
[347050810,1735485034165,-500.0,0.00011544,2]
[347050811,1735485034176,-500.0,0.00011544,2]
[347050812,1735485034186,-500.0,0.00011544,2]
[347050813,1735485034196,-500.0,0.00011544,2]
[347050814,1735485034207,-525.44196606,0.00011544,2]
[347050815,1735485034216,-2200.31,0.00011544,2]
[347050816,1735485034226,-500.0,0.00011544,2]
[347050817,1735485034237,-500.0,0.00011544,2]
[347050818,1735485034247,-500.0,0.00011544,2]
[347050819,1735485034256,-500.0,0.00011544,2]
[347050820,1735485034266,-500.0,0.00011544,2]
[347050821,1735485034276,-500.0,0.00011544,2]
[347050822,1735485034285,-500.0,0.00011544,2]
[347050823,1735485034295,-500.0,0.00011544,2]
[347050824,1735485034304,-500.0,0.00011544,2]
[347050825,1735485034313,-1108.54,0.00011544,2]
[347050826,1735485034323,-500.0,0.00011544,2]
[347050827,1735485034333,-2242.97,0.00011544,2]
[347050828,1735485034343,-500.0,0.00011544,2]
[347050829,1735485034352,-500.0,0.00011544,2]
[347050830,1735485034361,-500.0,0.00011544,2]
[347050831,1735485034371,-500.0,0.00011544,2]
[347050832,1735485034381,-500.0,0.00011544,2]
[347050833,1735485034390,-500.0,0.00011544,2]
[347050834,1735485034399,-500.0,0.00011544,2]
[347050835,1735485034409,-500.0,0.00011544,2]
[347050836,1735485034419,-500.0,0.00011544,2]
[347050837,1735485034428,-500.0,0.00011544,2]
[347050838,1735485034438,-500.0,0.00011544,2]
[347050839,1735485034447,-500.0,0.00011544,2]
[347050840,1735485034456,-500.0,0.00011544,2]
[347050841,1735485034466,-5998.86,0.00011544,2]
[347050842,1735485034475,-500.0,0.00011544,2]
[347050843,1735485034485,-500.0,0.00011544,2]
[347050844,1735485034494,-500.0,0.00011544,2]
[347050845,1735485034504,-500.0,0.00011544,2]
[347050846,1735485034513,-500.0,0.00011544,2]
[347050847,1735485034522,-553.51,0.00011544,2]
[347050848,1735485034531,-844.02,0.00011544,2]
[347050849,1735485034540,-500.0,0.00011544,2]
[347050850,1735485034549,-500.0,0.00011544,2]
[347050851,1735485034558,-500.0,0.00011544,2]
[347050852,1735485034567,-500.0,0.00011544,2]
[347050853,1735485034576,-500.0,0.00011544,2]
[347050854,1735485034586,-500.0,0.00011544,2]
[347050855,1735485034595,-500.0,0.00011544,2]
[347050856,1735485034604,-500.0,0.00011544,2]
[347050857,1735485034613,-500.0,0.00011544,2]
[347050858,1735485034623,-500.0,0.00011544,2]
[347050859,1735485034632,-500.0,0.00011544,2]
[347050860,1735485034640,-509.38378782,0.00011544,2]
[347050861,1735485034650,-500.0,0.00011544,2]
[347050862,1735485034659,-500.0,0.00011544,2]
[347050863,1735485034668,-500.0,0.00011544,2]
[347050864,1735485034677,-3504.85,0.00011544,2]
[347050865,1735485034687,-500.0,0.00011544,2]
[347050866,1735485034697,-236.528145,0.00011544,2]
[347050867,1735485034707,-500.0,0.00011544,2]
[347050868,1735485034716,-500.0,0.00011544,2]
[347050869,1735485034725,-500.0,0.00011544,2]
[347050870,1735485034735,-500.0,0.00011544,2]
[347050871,1735485034744,-1363.5,0.00011544,2]
[347050872,1735485034754,-500.0,0.00011544,2]
[347050873,1735485034763,-1297.87,0.00011544,2]
[347050874,1735485034772,-3907.66,0.00011544,2]
[347050875,1735485034782,-500.0,0.00011544,2]
[347050876,1735485034794,-500.0,0.00011544,2]
[347050877,1735485034804,-500.0,0.00011544,2]
[347050878,1735485034813,-500.0,0.00011544,2]
[347050879,1735485034822,-500.0,0.00011544,2]
[347050880,1735485034832,-608.19,0.00011544,2]
[347050881,1735485034842,-500.0,0.00011544,2]
[347050882,1735485034851,-500.0,0.00011544,2]
[347050883,1735485034861,-306.43018997,0.00011544,2]
[347050884,1735485034871,-500.0,0.00011544,2]
[347050885,1735485034880,-500.0,0.00011544,2]
[347050886,1735485034889,-500.0,0.00011544,2]
[347050887,1735485034899,-1104.02,0.00011544,2]
[347050888,1735485034908,-1259.38,0.00011544,2]
[347050889,1735485034917,-500.0,0.00011544,2]
[347050890,1735485034927,-500.0,0.00011544,2]
[347050891,1735485034937,-500.0,0.00011544,2]
[347050892,1735485034947,-500.0,0.00011544,2]
[347050893,1735485034956,-2493.27,0.00011544,2]
[347050894,1735485034965,-152.845,0.00011544,2]
[347050895,1735485034975,-3501.300546,0.00011544,2]
[347050896,1735485034984,-854.47,0.00011544,2]
[347050897,1735485034994,-154.796626,0.00011544,2]
[347050898,1735485035003,-500.0,0.00011544,2]
[347050899,1735485035013,-515.87,0.00011544,2]
[347050900,1735485035022,-500.0,0.00011544,2]
[347050901,1735485035031,-500.0,0.00011544,2]
[347050902,1735485035040,-3461.414912,0.00011544,2]
[347050903,1735485035050,-500.0,0.00011544,2]
[347050904,1735485035060,-500.0,0.00011544,2]
[347050905,1735485035071,-1467.84,0.00011544,2]
[347050906,1735485035080,-7023.62,0.00011544,2]
[347050907,1735485035091,-500.0,0.00011544,2]
[347050908,1735485035100,-500.0,0.00011544,2]
[347050909,1735485035109,-500.0,0.00011544,2]
[347050910,1735485035119,-500.0,0.00011544,2]
[347050911,1735485035128,-500.0,0.00011544,2]
[347050912,1735485035138,-500.0,0.00011544,2]
[347050913,1735485035147,-514.39,0.00011544,2]
[347050914,1735485035157,-500.0,0.00011544,2]
[347050915,1735485035167,-632.42,0.00011544,2]
[347050916,1735485035176,-500.0,0.00011544,2]
[347050917,1735485035186,-500.0,0.00011544,2]
[347050918,1735485035195,-1928.36,0.00011544,2]
[347050919,1735485035206,-500.0,0.00011544,2]
[347050920,1735485035216,-500.0,0.00011544,2]
[347050921,1735485035227,-500.0,0.00011544,2]
[347050922,1735485035237,-543.97,0.00011544,2]
[347050923,1735485035247,-500.0,0.00011544,2]
[347050924,1735485035257,-501.15034495,0.00011544,2]
[347050925,1735485035265,-500.0,0.00011544,2]
[347050926,1735485035275,-561.3,0.00011544,2]
[347050927,1735485035284,-2683.71,0.00011544,2]
[347050928,1735485035294,-500.0,0.00011544,2]
[347050929,1735485035303,-500.0,0.00011544,2]
[347050930,1735485035312,-500.0,0.00011544,2]
[347050931,1735485035321,-500.0,0.00011544,2]
[347050932,1735485035330,-1349.75,0.00011544,2]
[347050933,1735485035340,-2894.54,0.00011544,2]
[347050934,1735485035349,-552.99,0.00011544,2]
[347050935,1735485035358,-795.96,0.00011544,2]
[347050936,1735485035367,-500.0,0.00011544,2]
[347050937,1735485035376,-1346.8,0.00011544,2]
[347050938,1735485035386,-1749.73,0.00011544,2]
[347050939,1735485035394,-500.0,0.00011544,2]
[347050940,1735485035403,-500.0,0.00011544,2]
[347050941,1735485035412,-500.0,0.00011544,2]
[347050942,1735485035422,-535.27,0.00011544,2]
[347050943,1735485035432,-500.0,0.00011544,2]
[347050944,1735485035443,-521.11,0.00011544,2]
[347050945,1735485035452,-500.0,0.00011544,2]
[347050946,1735485035462,-1182.0,0.00011544,2]
[347050947,1735485035471,-500.0,0.00011544,2]
[347050948,1735485035480,-500.0,0.00011544,2]
[347050949,1735485035489,-1078.82,0.00011544,2]
[347050950,1735485035498,-534.91,0.00011544,2]
[347050951,1735485035508,-500.0,0.00011544,2]
[347050952,1735485035517,-1137.4,0.00011544,2]
[347050953,1735485035527,-500.0,0.00011544,2]
[347050954,1735485035536,-500.0,0.00011544,2]
[347050955,1735485035545,-500.0,0.00011544,2]
[347050956,1735485035556,-926.17,0.00011544,2]
[347050957,1735485035565,-500.0,0.00011544,2]
[347050958,1735485035576,-2084.2,0.00011544,2]
[347050959,1735485035587,-637.87654902,0.00011544,2]
[347050960,1735485035598,-2504.91,0.00011544,2]
[347050961,1735485035607,-609.02,0.00011544,2]
[347050962,1735485035616,-828.5,0.00011544,2]
[347050963,1735485035625,-500.0,0.00011544,2]
[347050964,1735485035634,-500.0,0.00011544,2]
[347050965,1735485035643,-500.0,0.00011544,2]
[347050966,1735485035653,-990.14,0.00011544,2]
[347050967,1735485035662,-585.913011,0.00011544,2]
[347050968,1735485035671,-500.0,0.00011544,2]
[347050969,1735485035683,-20376.94,0.00011544,2]
[347050970,1735485035696,-500.0,0.00011544,2]
[347050971,1735485035705,-500.0,0.00011544,2]
[347050972,1735485035714,-500.0,0.00011544,2]
[347050973,1735485035724,-930.15,0.00011544,2]
[347050974,1735485035733,-526.16,0.00011544,2]
[347050975,1735485035743,-500.0,0.00011544,2]
[347050976,1735485035752,-787.25,0.00011544,2]
[347050977,1735485035761,-500.0,0.00011544,2]
[347050978,1735485035770,-554.24,0.00011544,2]
[347050979,1735485035781,-500.0,0.00011544,2]
[347050980,1735485035793,-500.0,0.00011544,2]
[347050981,1735485035803,-500.0,0.00011544,2]
[347050982,1735485035812,-500.0,0.00011544,2]
[347050983,1735485035821,-500.0,0.00011544,2]
[347050984,1735485035831,-550.86,0.00011544,2]
[347050985,1735485035840,-500.0,0.00011544,2]
[347050986,1735485035849,-500.0,0.00011544,2]
[347050987,1735485035858,-500.0,0.00011544,2]
[347050988,1735485035869,-624.92391715,0.00011544,2]
[347050989,1735485035879,-2533.49,0.00011544,2]
[347050990,1735485035888,-500.0,0.00011544,2]
[347050991,1735485035898,-500.0,0.00011544,2]
[347050992,1735485035907,-500.0,0.00011544,2]
[347050993,1735485035916,-500.0,0.00011544,2]
[347050994,1735485035925,-500.0,0.00011544,2]
[347050995,1735485035935,-500.0,0.00011544,2]
[347050996,1735485035945,-500.0,0.00011544,2]
[347050997,1735485035955,-500.0,0.00011544,2]
[347050998,1735485035964,-497.14269643,0.00011544,2]
[347050999,1735485035973,-500.0,0.00011544,2]
[347051000,1735485035983,-500.0,0.00011544,2]
[347051001,1735485035992,-500.0,0.00011544,2]
[347051002,1735485036002,-500.0,0.00011544,2]
[347051003,1735485036011,-2237.76,0.00011544,2]
[347051004,1735485036021,-2329.98,0.00011544,2]
[347051005,1735485036030,-500.0,0.00011544,2]
[347051006,1735485036041,-500.0,0.00011544,2]
[347051007,1735485036050,-1614.94,0.00011544,2]
[347051008,1735485036060,-500.0,0.00011544,2]
[347051009,1735485036069,-500.0,0.00011544,2]
[347051010,1735485036078,-500.0,0.00011544,2]
[347051011,1735485036088,-5070.81,0.00011544,2]
[347051012,1735485036098,-500.0,0.00011544,2]
[347051013,1735485036108,-500.0,0.00011544,2]
[347051014,1735485036117,-500.0,0.00011544,2]
[347051015,1735485036126,-500.0,0.00011544,2]
[347051016,1735485036136,-500.0,0.00011544,2]
[347051017,1735485036145,-500.0,0.00011544,2]
[347051018,1735485036155,-500.0,0.00011544,2]
[347051019,1735485036165,-500.0,0.00011544,2]
[347051020,1735485036174,-500.0,0.00011544,2]
[347051021,1735485036184,-500.0,0.00011544,2]
[347051022,1735485036195,-500.0,0.00011544,2]
[347051023,1735485036204,-500.0,0.00011544,2]
[347051024,1735485036214,-500.0,0.00011544,2]
[347051025,1735485036223,-500.0,0.00011544,2]
[347051026,1735485036233,-1475.43,0.00011544,2]
[347051027,1735485036242,-500.0,0.00011544,2]
[347051028,1735485036251,-3671.17,0.00011544,2]
[347051029,1735485036261,-500.0,0.00011544,2]
[347051030,1735485036270,-1132.44,0.00011544,2]
[347051031,1735485036280,-1317.07,0.00011544,2]
[347051032,1735485036289,-2372.66,0.00011544,2]
[347051033,1735485036299,-500.0,0.00011544,2]
[347051034,1735485036308,-500.0,0.00011544,2]
[347051035,1735485036318,-500.0,0.00011544,2]
[347051036,1735485036327,-500.0,0.00011544,2]
[347051037,1735485036337,-554.27,0.00011544,2]
[347051038,1735485036346,-691.04,0.00011544,2]
[347051039,1735485036356,-1304.68,0.00011544,2]
[347051040,1735485036365,-6548.67,0.00011544,2]
[347051041,1735485036374,-3288.63,0.00011544,2]
[347051042,1735485036383,-500.0,0.00011544,2]
[347051043,1735485036392,-500.0,0.00011544,2]
[347051044,1735485036402,-1098.1,0.00011544,2]
[347051045,1735485036411,-500.0,0.00011544,2]
[347051046,1735485036420,-500.0,0.00011544,2]
[347051047,1735485036429,-2041.27,0.00011544,2]
[347051048,1735485036439,-3739.98,0.00011544,2]
[347051049,1735485036448,-500.0,0.00011544,2]
[347051050,1735485036676,-1345.53,0.00011544,2]
[347051051,1735485036688,-2376.13,0.00011544,2]
[347051052,1735485036698,-702.9,0.00011544,2]
[347051053,1735485036708,-1787.56,0.00011544,2]
[347051054,1735485036717,-1177.87,0.00011544,2]
[347051055,1735485036726,-6078.87,0.00011544,2]
[347051056,1735485036736,-500.0,0.00011544,2]
[347051057,1735485036745,-500.0,0.00011544,2]
[347051058,1735485036754,-609.47,0.00011544,2]
[347051059,1735485036764,-505.49067879,0.00011544,2]
[347051060,1735485036773,-500.0,0.00011544,2]
[347051061,1735485036783,-1176.36,0.00011544,2]
[347051062,1735485036798,-540.53,0.00011544,2]
[347051063,1735485036808,-6957.44,0.00011544,2]
[347051064,1735485036820,-500.0,0.00011544,2]
[347051065,1735485036831,-500.0,0.00011544,2]